[Event "Titled Tuesday Blitz March 01 Early 2022"]
[White "Bodnaruk, Anastasia"]
[Black "Siva Mahadevan"]
[WhiteFideId "4181751"]
[BlackFideId "25043153"]
[WhiteElo "2393"]
[BlackElo "2203"]
[Result "0-1"]
[Round "03"]
[TimeControl "180+1"]
[Date "2022.03.01"]
[WhiteClock "0:00:01"]
[BlackClock "0:00:46"]

1. e4 {[%clk 0:03:00]}  c5 {[%clk 0:02:59]} 2. Nc3 {[%clk 0:03:00]}  Nc6 {[%clk 0:02:59]} 3. Bb5 {[%clk 0:03:00]}  Nd4 {[%clk 0:02:59]} 4. Bc4 {[%clk 0:03:00]}  g6 {[%clk 0:02:58]} 5. Nf3 {[%clk 0:02:57]}  Bg7 {[%clk 0:02:58]} 6. Nxd4 {[%clk 0:02:57]}  cxd4 {[%clk 0:02:59]} 7. Qf3 {[%clk 0:02:58]}  Nh6 {[%clk 0:02:59]} 8. Ne2 {[%clk 0:02:57]}  O-O {[%clk 0:02:57]} 9. d3 {[%clk 0:02:52]}  Ng4 {[%clk 0:02:57]} 10. Qg3 {[%clk 0:02:44]}  Nf6 {[%clk 0:02:36]} 11. Bb3 {[%clk 0:02:39]}  a5 {[%clk 0:02:32]} 12. a4 {[%clk 0:02:38]}  d5 {[%clk 0:02:12]} 13. e5 {[%clk 0:02:18]}  Nh5 {[%clk 0:02:11]} 14. Qh4 {[%clk 0:01:42]}  Bxe5 {[%clk 0:02:07]} 15. g4 {[%clk 0:01:40]}  Ng7 {[%clk 0:01:51]} 16. f4 {[%clk 0:01:39]}  Bf6 {[%clk 0:01:48]} 17. Qg3 {[%clk 0:01:27]}  e6 {[%clk 0:01:44]} 18. h4 {[%clk 0:01:23]}  h5 {[%clk 0:01:43]} 19. f5 {[%clk 0:01:01]}  exf5 {[%clk 0:01:40]} 20. g5 {[%clk 0:00:59]}  Be7 {[%clk 0:01:38]} 21. Nxd4 {[%clk 0:00:55]}  Bc5 {[%clk 0:01:35]} 22. Nb5 {[%clk 0:00:41]}  Bd7 {[%clk 0:01:32]} 23. Nc7 {[%clk 0:00:31]}  Qe7+ {[%clk 0:01:31]} 24. Kd1 {[%clk 0:00:17]}  f4 {[%clk 0:01:30]} 25. Bxf4 {[%clk 0:00:15]}  Bg4+ {[%clk 0:01:30]} 26. Kd2 {[%clk 0:00:15]}  Qe2+ {[%clk 0:01:27]} 27. Kc1 {[%clk 0:00:13]}  Nf5 {[%clk 0:01:25]} 28. Qe1 {[%clk 0:00:12]}  Qg2 {[%clk 0:01:15]} 29. Nxd5 {[%clk 0:00:11]}  Bd4 {[%clk 0:01:08]} 30. c3 {[%clk 0:00:10]}  Rfe8 {[%clk 0:01:08]} 31. Qf1 {[%clk 0:00:10]}  Bf3 {[%clk 0:00:54]} 32. Qxg2 {[%clk 0:00:08]}  Bxg2 {[%clk 0:00:54]} 33. Rd1 {[%clk 0:00:09]}  Rad8 {[%clk 0:00:54]} 34. Nf6+ {[%clk 0:00:08]}  Bxf6 {[%clk 0:00:54]} 35. gxf6 {[%clk 0:00:09]}  Nxh4 {[%clk 0:00:52]} 36. Bg3 {[%clk 0:00:06]}  Nf5 {[%clk 0:00:51]} 37. Bf2 {[%clk 0:00:06]}  Re2 {[%clk 0:00:50]} 38. Bb6 {[%clk 0:00:06]}  Rd6 {[%clk 0:00:50]} 39. Bc7 {[%clk 0:00:06]}  Rxf6 {[%clk 0:00:49]} 40. d4 {[%clk 0:00:03]}  Ne3 {[%clk 0:00:46]} 41. Rg1 {[%clk 0:00:03]}  Bd5 {[%clk 0:00:45]} 42. Bxd5 {[%clk 0:00:02]}  Nxd5 {[%clk 0:00:46]} 43. Be5 {[%clk 0:00:02]}  Rff2 {[%clk 0:00:46]} 44. Bg3 {[%clk 0:00:02]}  Rc2+ {[%clk 0:00:46]} 45. Kd1 {[%clk 0:00:01]}  Ne3+ {[%clk 0:00:46]} 0-1


[Site "https://www.chess.com"]

[Event "Titled Tuesday Blitz March 01 Early 2022"]
[White "Bortnyk, Olexandr"]
[Black "Garagulya, Konstantin"]
[WhiteFideId "14120828"]
[BlackFideId "4128931"]
[WhiteElo "2723"]
[BlackElo "2329"]
[Result "1-0"]
[Round "03"]
[TimeControl "180+1"]
[Date "2022.03.01"]
[WhiteClock "0:00:10"]
[BlackClock "0:00:15"]

1. e4 {[%clk 0:03:00]}  c5 {[%clk 0:02:56]} 2. c3 {[%clk 0:02:59]}  d5 {[%clk 0:02:56]} 3. exd5 {[%clk 0:02:59]}  Qxd5 {[%clk 0:02:57]} 4. d4 {[%clk 0:02:59]}  Nf6 {[%clk 0:02:57]} 5. Nf3 {[%clk 0:02:58]}  cxd4 {[%clk 0:02:58]} 6. cxd4 {[%clk 0:02:58]}  e6 {[%clk 0:02:58]} 7. Nc3 {[%clk 0:02:58]}  Qd6 {[%clk 0:02:59]} 8. Bc4 {[%clk 0:02:55]}  Nc6 {[%clk 0:02:58]} 9. O-O {[%clk 0:02:53]}  Be7 {[%clk 0:02:55]} 10. Qe2 {[%clk 0:02:45]}  Nxd4 {[%clk 0:02:50]} 11. Nxd4 {[%clk 0:02:46]}  Qxd4 {[%clk 0:02:51]} 12. Nb5 {[%clk 0:02:36]}  Qb6 {[%clk 0:02:37]} 13. Be3 {[%clk 0:02:24]}  Bc5 {[%clk 0:02:35]} 14. Rfd1 {[%clk 0:01:58]}  Bxe3 {[%clk 0:02:24]} 15. Nd6+ {[%clk 0:01:56]}  Ke7 {[%clk 0:02:25]} 16. fxe3 {[%clk 0:01:28]}  Rd8 {[%clk 0:02:18]} 17. Nb5 {[%clk 0:01:27]}  Rxd1+ {[%clk 0:01:46]} 18. Rxd1 {[%clk 0:01:28]}  a6 {[%clk 0:01:46]} 19. Nd6 {[%clk 0:00:46]}  Bd7 {[%clk 0:01:35]} 20. Qf3 {[%clk 0:00:45]}  Bc6 {[%clk 0:01:23]} 21. Qg3 {[%clk 0:00:45]}  Rd8 {[%clk 0:01:17]} 22. Qe5 {[%clk 0:00:24]}  Kf8 {[%clk 0:00:48]} 23. Rd2 {[%clk 0:00:16]}  Ne8 {[%clk 0:00:33]} 24. Bxe6 {[%clk 0:00:09]}  Rxd6 {[%clk 0:00:23]} 25. Rxd6 {[%clk 0:00:10]}  Nxd6 {[%clk 0:00:22]} 26. Qxd6+ {[%clk 0:00:10]}  Ke8 {[%clk 0:00:23]} 27. Bd7+ {[%clk 0:00:09]}  Kd8 {[%clk 0:00:20]} 28. Bxc6+ {[%clk 0:00:09]}  Kc8 {[%clk 0:00:15]} 29. Bd7+ {[%clk 0:00:10]} 1-0


[Site "https://www.chess.com"]

[Event "Titled Tuesday Blitz March 01 Early 2022"]
[White "Butti, Enrique"]
[Black "Karas, Marek"]
[WhiteFideId "3700470"]
[BlackFideId "14928558"]
[WhiteElo "2080"]
[BlackElo "2270"]
[Result "0-1"]
[Round "03"]
[TimeControl "180+1"]
[Date "2022.03.01"]
[WhiteClock "0:01:26"]
[BlackClock "0:01:05"]

1. d4 {[%clk 0:02:59]}  Nf6 {[%clk 0:02:59]} 2. Nf3 {[%clk 0:02:58]}  c5 {[%clk 0:02:58]} 3. e3 {[%clk 0:02:57]}  g6 {[%clk 0:02:57]} 4. Bd3 {[%clk 0:02:55]}  Bg7 {[%clk 0:02:55]} 5. O-O {[%clk 0:02:54]}  O-O {[%clk 0:02:55]} 6. c3 {[%clk 0:02:54]}  d5 {[%clk 0:02:51]} 7. Ne5 {[%clk 0:02:53]}  Nc6 {[%clk 0:02:50]} 8. f4 {[%clk 0:02:52]}  Bf5 {[%clk 0:02:44]} 9. Bxf5 {[%clk 0:02:40]}  gxf5 {[%clk 0:02:45]} 10. Nd2 {[%clk 0:02:39]}  e6 {[%clk 0:02:45]} 11. Rf3 {[%clk 0:02:34]}  Ne4 {[%clk 0:02:32]} 12. Nxe4 {[%clk 0:02:17]}  dxe4 {[%clk 0:02:31]} 13. Rh3 {[%clk 0:02:16]}  cxd4 {[%clk 0:02:21]} 14. cxd4 {[%clk 0:01:57]}  Nxe5 {[%clk 0:02:19]} 15. fxe5 {[%clk 0:01:52]}  Qg5 {[%clk 0:02:15]} 16. Bd2 {[%clk 0:01:47]}  Rac8 {[%clk 0:02:06]} 17. Be1 {[%clk 0:01:46]}  Qg6 {[%clk 0:01:43]} 18. Bh4 {[%clk 0:01:41]}  Qg4 {[%clk 0:01:33]} 19. Bf6 {[%clk 0:01:34]}  Qxd1+ {[%clk 0:01:26]} 20. Rxd1 {[%clk 0:01:30]}  Bxf6 {[%clk 0:01:24]} 21. exf6 {[%clk 0:01:30]}  Kh8 {[%clk 0:01:14]} 22. d5 {[%clk 0:01:29]}  Rfd8 {[%clk 0:01:10]} 23. d6 {[%clk 0:01:26]}  Rc6 {[%clk 0:01:05]} 0-1


[Site "https://www.chess.com"]

[Event "Titled Tuesday Blitz March 01 Early 2022"]
[White "Chernomordik, Pavel"]
[Black "Kozak, Adam"]
[WhiteFideId "2804530"]
[BlackFideId "753246"]
[WhiteElo "2249"]
[BlackElo "2459"]
[Result "0-1"]
[Round "03"]
[TimeControl "180+1"]
[Date "2022.03.01"]
[WhiteClock "0:00:02"]
[BlackClock "0:01:07"]

1. e4 {[%clk 0:03:00]}  c6 {[%clk 0:02:58]} 2. Nc3 {[%clk 0:03:00]}  d5 {[%clk 0:02:58]} 3. Qf3 {[%clk 0:02:59]}  d4 {[%clk 0:02:56]} 4. Bc4 {[%clk 0:02:58]}  e6 {[%clk 0:02:55]} 5. Nce2 {[%clk 0:02:57]}  a5 {[%clk 0:02:55]} 6. a3 {[%clk 0:02:51]}  Nd7 {[%clk 0:02:54]} 7. Qg3 {[%clk 0:02:50]}  b5 {[%clk 0:02:49]} 8. Ba2 {[%clk 0:02:47]}  h5 {[%clk 0:02:47]} 9. h4 {[%clk 0:02:29]}  Nc5 {[%clk 0:02:41]} 10. d3 {[%clk 0:02:27]}  a4 {[%clk 0:02:41]} 11. f4 {[%clk 0:02:20]}  Na6 {[%clk 0:02:29]} 12. Nf3 {[%clk 0:02:15]}  c5 {[%clk 0:02:29]} 13. O-O {[%clk 0:02:07]}  Ra7 {[%clk 0:02:28]} 14. Ne5 {[%clk 0:01:56]}  Nf6 {[%clk 0:02:20]} 15. Nc6 {[%clk 0:01:54]}  Qb6 {[%clk 0:02:19]} 16. Nxa7 {[%clk 0:01:52]}  Qxa7 {[%clk 0:02:20]} 17. f5 {[%clk 0:01:46]}  exf5 {[%clk 0:02:02]} 18. exf5 {[%clk 0:01:39]}  c4 {[%clk 0:01:46]} 19. Bg5 {[%clk 0:01:28]}  Be7 {[%clk 0:01:44]} 20. Qe5 {[%clk 0:01:22]}  O-O {[%clk 0:01:43]} 21. Nf4 {[%clk 0:01:08]}  Bd8 {[%clk 0:01:33]} 22. Nd5 {[%clk 0:00:56]}  Ng4 {[%clk 0:01:27]} 23. Qg3 {[%clk 0:00:48]}  Qc5 {[%clk 0:01:23]} 24. Bxd8 {[%clk 0:00:42]}  Rxd8 {[%clk 0:01:24]} 25. Nf4 {[%clk 0:00:38]}  Bxf5 {[%clk 0:01:23]} 26. Nxh5 {[%clk 0:00:34]}  g6 {[%clk 0:01:23]} 27. Nf4 {[%clk 0:00:27]}  Re8 {[%clk 0:01:23]} 28. Rae1 {[%clk 0:00:21]}  Re3 {[%clk 0:01:23]} 29. Rxe3 {[%clk 0:00:20]}  dxe3 {[%clk 0:01:24]} 30. Kh1 {[%clk 0:00:19]}  Nc7 {[%clk 0:01:21]} 31. dxc4 {[%clk 0:00:19]}  bxc4 {[%clk 0:01:22]} 32. Re1 {[%clk 0:00:17]}  Ne8 {[%clk 0:01:18]} 33. Qf3 {[%clk 0:00:15]}  Nef6 {[%clk 0:01:16]} 34. Qe2 {[%clk 0:00:13]}  Ne4 {[%clk 0:01:14]} 35. Qxc4 {[%clk 0:00:12]}  Qa7 {[%clk 0:01:10]} 36. Qxf7+ {[%clk 0:00:09]}  Qxf7 {[%clk 0:01:10]} 37. Bxf7+ {[%clk 0:00:09]}  Kxf7 {[%clk 0:01:11]} 38. Nd5 {[%clk 0:00:09]}  e2 {[%clk 0:01:09]} 39. Kg1 {[%clk 0:00:07]}  Ng3 {[%clk 0:01:08]} 40. Nf4 {[%clk 0:00:05]}  Ne3 {[%clk 0:01:08]} 41. Nxe2 {[%clk 0:00:04]}  Nxc2 {[%clk 0:01:08]} 42. Nxg3 {[%clk 0:00:03]}  Nxe1 {[%clk 0:01:09]} 43. h5 {[%clk 0:00:02]}  Nd3 {[%clk 0:01:08]} 44. hxg6+ {[%clk 0:00:01]}  Kxg6 {[%clk 0:01:09]} 45. Ne2 {[%clk 0:00:01]}  Nxb2 {[%clk 0:01:08]} 46. Nc3 {[%clk 0:00:02]}  Bc2 {[%clk 0:01:07]} 0-1


[Site "https://www.chess.com"]

[Event "Titled Tuesday Blitz March 01 Early 2022"]
[White "Costachi, Mihnea"]
[Black "Dolzhykova, Kateryna"]
[WhiteFideId "1217518"]
[BlackFideId "14113414"]
[WhiteElo "2464"]
[BlackElo "2165"]
[Result "1-0"]
[Round "03"]
[TimeControl "180+1"]
[Date "2022.03.01"]
[WhiteClock "0:01:17"]
[BlackClock "0:00:03"]

1. f4 {[%clk 0:03:00]}  e5 {[%clk 0:02:59]} 2. fxe5 {[%clk 0:03:00]}  d6 {[%clk 0:02:59]} 3. exd6 {[%clk 0:02:59]}  Bxd6 {[%clk 0:03:00]} 4. Nf3 {[%clk 0:02:58]}  Nf6 {[%clk 0:03:01]} 5. Nc3 {[%clk 0:02:55]}  Ng4 {[%clk 0:03:00]} 6. e4 {[%clk 0:02:44]}  Nxh2 {[%clk 0:02:55]} 7. Bb5+ {[%clk 0:02:35]}  c6 {[%clk 0:02:54]} 8. e5 {[%clk 0:02:26]}  Bxe5 {[%clk 0:02:41]} 9. Qe2 {[%clk 0:02:21]}  Nxf3+ {[%clk 0:02:40]} 10. gxf3 {[%clk 0:02:21]}  Qe7 {[%clk 0:02:40]} 11. Bc4 {[%clk 0:02:17]}  Bg3+ {[%clk 0:02:36]} 12. Kf1 {[%clk 0:02:17]}  Qxe2+ {[%clk 0:02:37]} 13. Nxe2 {[%clk 0:02:17]}  Bd6 {[%clk 0:02:35]} 14. d4 {[%clk 0:02:17]}  b5 {[%clk 0:02:31]} 15. Bd3 {[%clk 0:02:15]}  Be6 {[%clk 0:02:28]} 16. Bf4 {[%clk 0:02:15]}  Kd7 {[%clk 0:02:28]} 17. Re1 {[%clk 0:02:10]}  Na6 {[%clk 0:02:27]} 18. c3 {[%clk 0:02:03]}  Rae8 {[%clk 0:02:19]} 19. a4 {[%clk 0:02:03]}  Nc7 {[%clk 0:02:19]} 20. axb5 {[%clk 0:02:03]}  cxb5 {[%clk 0:02:20]} 21. Ra1 {[%clk 0:02:02]}  a6 {[%clk 0:02:18]} 22. Bxd6 {[%clk 0:02:02]}  Kxd6 {[%clk 0:02:19]} 23. Ng3 {[%clk 0:02:02]}  Kc6 {[%clk 0:02:00]} 24. Ne4 {[%clk 0:02:01]}  Bf5 {[%clk 0:01:52]} 25. Kf2 {[%clk 0:01:55]}  Kb6 {[%clk 0:01:52]} 26. Rh5 {[%clk 0:01:49]}  g6 {[%clk 0:01:33]} 27. Rh4 {[%clk 0:01:49]}  h5 {[%clk 0:01:31]} 28. b3 {[%clk 0:01:47]}  Nd5 {[%clk 0:01:26]} 29. c4 {[%clk 0:01:45]}  Nb4 {[%clk 0:01:27]} 30. c5+ {[%clk 0:01:44]}  Kc7 {[%clk 0:01:22]} 31. Bb1 {[%clk 0:01:41]}  Rd8 {[%clk 0:01:22]} 32. Nd6 {[%clk 0:01:40]}  Bxb1 {[%clk 0:01:20]} 33. Rxb1 {[%clk 0:01:41]}  Rxd6 {[%clk 0:01:15]} 34. cxd6+ {[%clk 0:01:40]}  Kxd6 {[%clk 0:01:16]} 35. Ra1 {[%clk 0:01:34]}  Rc8 {[%clk 0:01:15]} 36. d5 {[%clk 0:01:34]}  Rc2+ {[%clk 0:01:05]} 37. Kg3 {[%clk 0:01:34]}  Nxd5 {[%clk 0:00:26]} 38. Rxa6+ {[%clk 0:01:34]}  Rc6 {[%clk 0:00:22]} 39. Rxc6+ {[%clk 0:01:33]}  Kxc6 {[%clk 0:00:22]} 40. Re4 {[%clk 0:01:30]}  Kd6 {[%clk 0:00:20]} 41. f4 {[%clk 0:01:28]}  f6 {[%clk 0:00:12]} 42. b4 {[%clk 0:01:28]}  g5 {[%clk 0:00:11]} 43. f5 {[%clk 0:01:26]}  h4+ {[%clk 0:00:05]} 44. Kg4 {[%clk 0:01:25]}  Nf4 {[%clk 0:00:05]} 45. Rd4+ {[%clk 0:01:17]}  Ke5 {[%clk 0:00:05]} 46. Rd8 {[%clk 0:01:18]}  h3 {[%clk 0:00:05]} 47. Rb8 {[%clk 0:01:17]}  h2 {[%clk 0:00:05]} 48. Rh8 {[%clk 0:01:18]}  Kd4 {[%clk 0:00:04]} 49. Rxh2 {[%clk 0:01:18]}  Kc4 {[%clk 0:00:05]} 50. Rh6 {[%clk 0:01:17]}  Nd5 {[%clk 0:00:03]} 51. Kf3 {[%clk 0:01:17]}  Kxb4 {[%clk 0:00:04]} 52. Ke4 {[%clk 0:01:17]}  Kc5 {[%clk 0:00:04]} 53. Rh8 {[%clk 0:01:17]}  b4 {[%clk 0:00:05]} 54. Rc8+ {[%clk 0:01:17]}  Kd6 {[%clk 0:00:02]} 55. Rd8+ {[%clk 0:01:17]}  Kc6 {[%clk 0:00:02]} 56. Rxd5 {[%clk 0:01:18]}  b3 {[%clk 0:00:03]} 57. Rd3 {[%clk 0:01:17]} 1-0


[Site "https://www.chess.com"]

[Event "Titled Tuesday Blitz March 01 Early 2022"]
[White "Di Nicolantonio, Lucas"]
[Black "Boraso, Alessio"]
[WhiteFideId "680460"]
[BlackFideId "848077"]
[WhiteElo "2381"]
[BlackElo "2277"]
[Result "1-0"]
[Round "03"]
[TimeControl "180+1"]
[Date "2022.03.01"]
[WhiteClock "0:00:07"]
[BlackClock "0:00:03"]

1. e4 {[%clk 0:03:00]}  g5 {[%clk 0:02:53]} 2. d4 {[%clk 0:02:58]}  Bg7 {[%clk 0:02:52]} 3. Bxg5 {[%clk 0:02:57]}  c5 {[%clk 0:02:53]} 4. Be3 {[%clk 0:02:08]}  Qb6 {[%clk 0:02:51]} 5. Nc3 {[%clk 0:01:55]}  cxd4 {[%clk 0:02:18]} 6. Nd5 {[%clk 0:01:51]}  Qxb2 {[%clk 0:02:12]} 7. Rb1 {[%clk 0:01:32]}  Qxa2 {[%clk 0:02:01]} 8. Bd2 {[%clk 0:01:25]}  Nf6 {[%clk 0:01:31]} 9. Nc7+ {[%clk 0:01:01]}  Kd8 {[%clk 0:01:31]} 10. Nxa8 {[%clk 0:01:02]}  Nxe4 {[%clk 0:01:31]} 11. Nf3 {[%clk 0:00:55]}  Nc6 {[%clk 0:01:09]} 12. Bd3 {[%clk 0:00:52]}  d5 {[%clk 0:01:07]} 13. O-O {[%clk 0:00:51]}  Qa3 {[%clk 0:00:36]} 14. Qe2 {[%clk 0:00:27]}  f5 {[%clk 0:00:32]} 15. Ra1 {[%clk 0:00:23]}  Qd6 {[%clk 0:00:31]} 16. Rfb1 {[%clk 0:00:19]}  Rg8 {[%clk 0:00:29]} 17. g3 {[%clk 0:00:16]}  h5 {[%clk 0:00:23]} 18. Kh1 {[%clk 0:00:16]}  e5 {[%clk 0:00:20]} 19. Ng5 {[%clk 0:00:15]}  Ke7 {[%clk 0:00:16]} 20. f3 {[%clk 0:00:14]}  Nxd2 {[%clk 0:00:15]} 21. Qxd2 {[%clk 0:00:14]}  Bh6 {[%clk 0:00:15]} 22. f4 {[%clk 0:00:13]}  e4 {[%clk 0:00:09]} 23. Bb5 {[%clk 0:00:12]}  Bxg5 {[%clk 0:00:05]} 24. fxg5 {[%clk 0:00:12]}  e3 {[%clk 0:00:06]} 25. Qd3 {[%clk 0:00:08]}  f4 {[%clk 0:00:04]} 26. Bxc6 {[%clk 0:00:08]}  bxc6 {[%clk 0:00:03]} 27. Qxd4 {[%clk 0:00:08]}  Bd7 {[%clk 0:00:02]} 28. Rxa7 {[%clk 0:00:07]}  fxg3 {[%clk 0:00:03]} 29. Qxe3+ {[%clk 0:00:08]}  Kf8 {[%clk 0:00:02]} 30. Rf1+ {[%clk 0:00:07]}  Kg7 {[%clk 0:00:02]} 31. Qd4+ {[%clk 0:00:08]}  Kh7 {[%clk 0:00:02]} 32. Rf7+ {[%clk 0:00:08]}  Kg6 {[%clk 0:00:02]} 33. Rf6+ {[%clk 0:00:08]}  Kxg5 {[%clk 0:00:02]} 34. Rxd6 {[%clk 0:00:08]}  g2+ {[%clk 0:00:02]} 35. Kg1 {[%clk 0:00:08]}  Kf5 {[%clk 0:00:03]} 36. Rf6+ {[%clk 0:00:07]} 1-0


[Site "https://www.chess.com"]

[Event "Titled Tuesday Blitz March 01 Early 2022"]
[White "Fier, Alexandr"]
[Black "Dobre, Claudiu-Cristian"]
[WhiteFideId "2107139"]
[BlackFideId "1211854"]
[WhiteElo "2569"]
[BlackElo "2207"]
[Result "1-0"]
[Round "03"]
[TimeControl "180+1"]
[Date "2022.03.01"]
[WhiteClock "0:01:29"]
[BlackClock "0:00:15"]

1. d4 {[%clk 0:03:00]}  d5 {[%clk 0:02:59]} 2. c4 {[%clk 0:03:01]}  c6 {[%clk 0:02:59]} 3. cxd5 {[%clk 0:03:01]}  cxd5 {[%clk 0:02:58]} 4. Bf4 {[%clk 0:03:02]}  Nc6 {[%clk 0:02:58]} 5. e3 {[%clk 0:03:02]}  Nf6 {[%clk 0:02:58]} 6. Nc3 {[%clk 0:03:02]}  Bf5 {[%clk 0:02:57]} 7. Qb3 {[%clk 0:02:59]}  Na5 {[%clk 0:02:56]} 8. Qa4+ {[%clk 0:02:59]}  Nc6 {[%clk 0:02:56]} 9. Nf3 {[%clk 0:02:57]}  Bd7 {[%clk 0:02:50]} 10. Qc2 {[%clk 0:02:57]}  Rc8 {[%clk 0:02:45]} 11. h3 {[%clk 0:02:56]}  e6 {[%clk 0:02:44]} 12. a3 {[%clk 0:02:55]}  Be7 {[%clk 0:02:38]} 13. Bd3 {[%clk 0:02:55]}  O-O {[%clk 0:02:38]} 14. O-O {[%clk 0:02:55]}  h6 {[%clk 0:02:29]} 15. Qe2 {[%clk 0:02:54]}  Nh5 {[%clk 0:02:11]} 16. Bh2 {[%clk 0:02:53]}  f5 {[%clk 0:02:11]} 17. Ne5 {[%clk 0:02:52]}  Nxe5 {[%clk 0:02:03]} 18. dxe5 {[%clk 0:02:42]}  g6 {[%clk 0:02:03]} 19. f4 {[%clk 0:02:38]}  Ng7 {[%clk 0:02:01]} 20. Qf2 {[%clk 0:02:35]}  Qb6 {[%clk 0:01:56]} 21. Rab1 {[%clk 0:02:30]}  Kh7 {[%clk 0:01:48]} 22. Ne2 {[%clk 0:02:29]}  Bb5 {[%clk 0:01:46]} 23. Bxb5 {[%clk 0:02:29]}  Qxb5 {[%clk 0:01:46]} 24. Nd4 {[%clk 0:02:30]}  Qb6 {[%clk 0:01:40]} 25. Bg3 {[%clk 0:02:29]}  Rc4 {[%clk 0:01:35]} 26. Bh4 {[%clk 0:02:29]}  Bxh4 {[%clk 0:01:33]} 27. Qxh4 {[%clk 0:02:29]}  Rfc8 {[%clk 0:01:31]} 28. Qf6 {[%clk 0:02:27]}  Qd8 {[%clk 0:01:28]} 29. g4 {[%clk 0:02:22]}  a6 {[%clk 0:01:09]} 30. Kg2 {[%clk 0:02:21]}  R4c5 {[%clk 0:01:06]} 31. Kg3 {[%clk 0:02:19]}  R5c7 {[%clk 0:01:05]} 32. Rf2 {[%clk 0:02:10]}  Qe7 {[%clk 0:01:05]} 33. Rff1 {[%clk 0:02:04]}  Re8 {[%clk 0:00:56]} 34. Qxe7 {[%clk 0:02:03]}  Rexe7 {[%clk 0:00:54]} 35. Rbc1 {[%clk 0:02:03]}  Kg8 {[%clk 0:00:51]} 36. Kf3 {[%clk 0:01:58]}  Kf7 {[%clk 0:00:41]} 37. Ke2 {[%clk 0:01:58]}  Ne8 {[%clk 0:00:41]} 38. Kd3 {[%clk 0:01:56]}  Rxc1 {[%clk 0:00:41]} 39. Rxc1 {[%clk 0:01:56]}  Rc7 {[%clk 0:00:41]} 40. Rg1 {[%clk 0:01:55]}  Ng7 {[%clk 0:00:32]} 41. b3 {[%clk 0:01:54]}  Ne8 {[%clk 0:00:26]} 42. gxf5 {[%clk 0:01:50]}  gxf5 {[%clk 0:00:25]} 43. h4 {[%clk 0:01:51]}  Ng7 {[%clk 0:00:25]} 44. a4 {[%clk 0:01:48]}  Rc8 {[%clk 0:00:26]} 45. a5 {[%clk 0:01:36]}  Ne8 {[%clk 0:00:25]} 46. h5 {[%clk 0:01:35]}  Nc7 {[%clk 0:00:24]} 47. Rg6 {[%clk 0:01:34]}  Rh8 {[%clk 0:00:23]} 48. b4 {[%clk 0:01:33]}  Rh7 {[%clk 0:00:22]} 49. Nb3 {[%clk 0:01:32]}  Rh8 {[%clk 0:00:20]} 50. Nc5 {[%clk 0:01:32]}  Rb8 {[%clk 0:00:19]} 51. Rxh6 {[%clk 0:01:31]}  Kg7 {[%clk 0:00:18]} 52. Rg6+ {[%clk 0:01:32]}  Kh7 {[%clk 0:00:17]} 53. Nxe6 {[%clk 0:01:29]}  Nb5 {[%clk 0:00:16]} 54. Ng5+ {[%clk 0:01:29]}  Kh8 {[%clk 0:00:15]} 55. h6 {[%clk 0:01:29]}  Rg8 {[%clk 0:00:15]} 1-0


[Site "https://www.chess.com"]

[Event "Titled Tuesday Blitz March 01 Early 2022"]
[White "Gadimbayli, Abdulla"]
[Black "Vokhidov, Shamsiddin"]
[WhiteFideId "13404938"]
[BlackFideId "14204223"]
[WhiteElo "2282"]
[BlackElo "2611"]
[Result "1/2-1/2"]
[Round "03"]
[TimeControl "180+1"]
[Date "2022.03.01"]
[WhiteClock "0:00:10"]
[BlackClock "0:00:41"]

1. e4 {[%clk 0:03:00]}  c5 {[%clk 0:03:00]} 2. Nf3 {[%clk 0:03:01]}  e6 {[%clk 0:03:00]} 3. d4 {[%clk 0:03:01]}  cxd4 {[%clk 0:03:01]} 4. Nxd4 {[%clk 0:03:02]}  Nf6 {[%clk 0:03:02]} 5. Nc3 {[%clk 0:03:02]}  Nc6 {[%clk 0:03:02]} 6. Nxc6 {[%clk 0:02:54]}  bxc6 {[%clk 0:03:03]} 7. Bd3 {[%clk 0:02:55]}  e5 {[%clk 0:03:01]} 8. O-O {[%clk 0:02:56]}  Bc5 {[%clk 0:03:01]} 9. Qe2 {[%clk 0:02:53]}  O-O {[%clk 0:03:00]} 10. Kh1 {[%clk 0:02:53]}  Re8 {[%clk 0:02:59]} 11. Rd1 {[%clk 0:02:28]}  Bb7 {[%clk 0:02:34]} 12. Na4 {[%clk 0:02:17]}  Bf8 {[%clk 0:02:33]} 13. c4 {[%clk 0:02:17]}  Qc7 {[%clk 0:02:07]} 14. Bg5 {[%clk 0:02:15]}  Be7 {[%clk 0:02:05]} 15. Rac1 {[%clk 0:02:14]}  Rad8 {[%clk 0:02:04]} 16. c5 {[%clk 0:02:13]}  h6 {[%clk 0:02:01]} 17. Be3 {[%clk 0:02:10]}  Rb8 {[%clk 0:02:00]} 18. f3 {[%clk 0:02:08]}  Nh5 {[%clk 0:01:55]} 19. Bc4 {[%clk 0:01:59]}  Nf4 {[%clk 0:01:53]} 20. Bxf4 {[%clk 0:01:35]}  exf4 {[%clk 0:01:54]} 21. Rd2 {[%clk 0:01:35]}  Bf6 {[%clk 0:01:31]} 22. Rcd1 {[%clk 0:01:34]}  Bc8 {[%clk 0:01:31]} 23. b3 {[%clk 0:01:27]}  Qa5 {[%clk 0:01:27]} 24. h3 {[%clk 0:01:07]}  Be5 {[%clk 0:01:27]} 25. Rd3 {[%clk 0:01:06]}  Rb4 {[%clk 0:01:25]} 26. Qc2 {[%clk 0:01:06]}  Re7 {[%clk 0:01:17]} 27. Kh2 {[%clk 0:00:59]}  g6 {[%clk 0:01:15]} 28. a3 {[%clk 0:00:44]}  Rb8 {[%clk 0:01:10]} 29. Qf2 {[%clk 0:00:38]}  Kg7 {[%clk 0:00:57]} 30. Qc2 {[%clk 0:00:35]}  Qc7 {[%clk 0:00:51]} 31. Qf2 {[%clk 0:00:31]}  a5 {[%clk 0:00:49]} 32. Nb6 {[%clk 0:00:28]}  Bf6 {[%clk 0:00:42]} 33. Rd6 {[%clk 0:00:16]}  Be5 {[%clk 0:00:40]} 34. R6d3 {[%clk 0:00:16]}  Bf6 {[%clk 0:00:40]} 35. Rd6 {[%clk 0:00:10]}  Be5 {[%clk 0:00:41]} 36. R6d3 {[%clk 0:00:10]} 1/2-1/2


[Site "https://www.chess.com"]